[Event "Austria Championship Blitz 2024"]
[Site "Innsbruck"]
[Date "2024.06.01"]
[Round "4.21"]
[White "Kondrak, Christoph"]
[Black "Wolfgang, Valentin"]
[Result "1-0"]
[ECO "D02"]
[WhiteElo "1972"]
[BlackElo "1866"]
[Annotator "RC"]
[PlyCount "105"]
[EventDate "2024.06.01"]
[EventType "swiss"]
[EventCountry "AUT"]
[SourceTitle "playchess.com"]
[Source "ChessBase"]
[SourceQuality "1"]
[TimeControl "180+2"]

1. d4 {[%emt 0:00:01]} d5 {[%emt 0:00:01]} 2. Nf3 {[%emt 0:00:01]} Nf6 {[%emt 0:00:11]} 3. Bf4 {[%emt 0:00:01]} e6 {[%emt 0:00:01]} 4. e3 {[%emt 0:00:01]} c5 {[%emt 0:00:15]} 5. dxc5 {[%emt 0:00:01]} Bxc5 {[%emt 0:00:02]} 6. a3 {[%emt 0:00:01]} O-O {[%emt 0:00:12]} 7. Nbd2 {[%emt 0:00:01]} Nc6 {[%emt 0:00:07]} 8. c4 {[%emt 0:00:01]} Re8 {[%emt 0:00:13]} 9. b4 {[%emt 0:00:11]} Bf8 {[%emt 0:00:14]} 10. cxd5 {[%emt 0:00:08]} Nxd5 {[%emt 0:00:06]} 11. Bg3 {[%emt 0:00:07]} a6 {[%emt 0:00:14]} 12. Rc1 {[%emt 0:00:07]} Nce7 {[%emt 0:00:13]} 13. Qb3 {[%emt 0:00:07]} b5 {[%emt 0:00:13]} 14. e4 {[%emt 0:00:56]} Nf6 {[%emt 0:00:14]} 15. Bc7 {[%emt 0:00:02]} Qd7 {[%emt 0:00:29]} 16. Ne5 {[%emt 0:00:15]} Qd4 {[%emt 0:00:11]} 17. Bd3 {[%emt 0:00:22]} Bb7 {[%emt 0:00:08]} 18. Nef3 {[%emt 0:00:31]} Qd7 {[%emt 0:00:06]} 19. O-O {[%emt 0:00:09]} Rac8 {[%emt 0:00:01]} 20. Ne5 {[%emt 0:00:05]} Qd4 {[%emt 0:00:14]} 21. Nef3 {[%emt 0:00:07]} Qd7 {[%emt 0:00:02]} 22. e5 {[%emt 0:00:04]} Ne4 {[%emt 0:00:11]} 23. Nxe4 {[%emt 0:00:05]} Rxc7 {[%emt 0:00:01]} 24. Rxc7 {[%emt 0:00:08]} Qxc7 {[%emt 0:00:01]} 25. Nd6 {[%emt 0:00:02]} Rd8 {[%emt 0:00:07]} 26. Qb1 {[%emt 0:00:03]} Nf5 {[%emt 0:00:02]} 27. Bxf5 {[%emt 0:00:02]} exf5 {[%emt 0:00:01]} 28. Qxf5 {[%emt 0:00:02]} Bxd6 {[%emt 0:00:01]} 29. exd6 {[%emt 0:00:00]} Qxd6 {[%emt 0:00:02]} 30. h3 {[%emt 0:00:02]} Bxf3 {[%emt 0:00:03]} 31. Qxf3 {[%emt 0:00:01]} Qd5 {[%emt 0:00:04]} 32. Qxd5 {[%emt 0:00:01]} Rxd5 {[%emt 0:00:01]} 33. Rc1 {[%emt 0:00:03]} Kf8 {[%emt 0:00:04]} 34. Rc6 {[%emt 0:00:01]} Rd1+ {[%emt 0:00:02]} 35. Kh2 {[%emt 0:00:00]} Rd2 {[%emt 0:00:01]} 36. Kg3 {[%emt 0:00:01]} h5 {[%emt 0:00:01]} 37. Rxa6 {[%emt 0:00:02]} Ra2 {[%emt 0:00:02]} 38. f3 {[%emt 0:00:02]} g6 {[%emt 0:00:00]} 39. Ra5 {[%emt 0:00:01]} Ke7 {[%emt 0:00:02]} 40. Rxb5 {[%emt 0:00:02]} Rxa3 {[%emt 0:00:01]} 41. Rb6 {[%emt 0:00:02]} Rb3 {[%emt 0:00:02]} 42. Kf4 {[%emt 0:00:02]} f6 {[%emt 0:00:02]} 43. g4 {[%emt 0:00:02]} hxg4 {[%emt 0:00:01]} 44. hxg4 {[%emt 0:00:01]} Kf7 {[%emt 0:00:01]} 45. b5 {[%emt 0:00:28]} Rb4+ {[%emt 0:00:02]} 46. Kg3 {[%emt 0:00:00]} g5 {[%emt 0:00:02]} 47. Rb8 {[%emt 0:00:00]} Ke7 {[%emt 0:00:03]} 48. b6 {[%emt 0:00:00]} Kf7 {[%emt 0:00:03]} 49. b7 {[%emt 0:00:00]} Kg7 {[%emt 0:00:03]} 50. Kf2 {[%emt 0:00:00]} f5 {[%emt 0:00:09]} 51. gxf5 {[%emt 0:00:12]} Kf6 52. Rf8+ {[%emt 0:00:02]} Ke7 {[%emt 0:00:04]} 53. b8=Q {[%emt 0:00:02]} 1-0

[Event "Austria Championship Blitz 2024"]
[Site "Innsbruck"]
[Date "2024.06.01"]
[Round "4.22"]
[White "Gschiel, Alexander"]
[Black "Kimpel, Janine"]
[Result "1-0"]
[ECO "D12"]
[WhiteElo "2355"]
[BlackElo "1875"]
[Annotator "RC"]
[PlyCount "57"]
[EventDate "2024.06.01"]
[EventType "swiss"]
[EventCountry "AUT"]
[SourceTitle "playchess.com"]
[Source "ChessBase"]
[SourceQuality "1"]
[TimeControl "180+2"]

1. d4 {[%emt 0:00:01]} d5 {[%emt 0:00:01]} 2. c4 {[%emt 0:00:01]} c6 {[%emt 0:00:03]} 3. Nf3 {[%emt 0:00:01]} Nf6 {[%emt 0:00:02]} 4. Nc3 {[%emt 0:00:01]} Bf5 {[%emt 0:00:01]} 5. e3 {[%emt 0:00:02]} e6 {[%emt 0:00:02]} 6. Nh4 {[%emt 0:00:03]} Bg4 {[%emt 0:00:09]} 7. Qb3 {[%emt 0:00:04]} Qb6 {[%emt 0:00:05]} 8. f3 {[%emt 0:00:06]} Qxb3 {[%emt 0:00:09]} 9. axb3 {[%emt 0:00:01]} Bh5 {[%emt 0:00:02]} 10. g4 {[%emt 0:00:02]} Bg6 {[%emt 0:00:01]} 11. Nxg6 {[%emt 0:00:02]} hxg6 {[%emt 0:00:01]} 12. Be2 {[%emt 0:00:11]} Bd6 {[%emt 0:00:02]} 13. f4 {[%emt 0:00:07]} Na6 {[%emt 0:00:16]} 14. c5 {[%emt 0:00:02]} Bc7 {[%emt 0:00:03]} 15. Bxa6 {[%emt 0:00:03]} bxa6 {[%emt 0:00:04]} 16. g5 {[%emt 0:00:05]} Ng4 {[%emt 0:00:17]} 17. h3 {[%emt 0:00:32]} f6 {[%emt 0:00:28]} 18. Rg1 {[%emt 0:00:05]} Nh2 {[%emt 0:00:08]} 19. Kf2 {[%emt 0:00:12]} Rxh3 {[%emt 0:00:23]} 20. Rg3 {[%emt 0:00:32]} Rh5 {[%emt 0:00:05]} 21. Rxa6 {[%emt 0:00:18]} Kd7 {[%emt 0:00:07]} 22. gxf6 gxf6 {[%emt 0:00:00]} 23. Rxg6 {[%emt 0:00:06]} Rh7 {[%emt 0:00:17]} 24. b4 {[%emt 0:00:04]} Bd8 {[%emt 0:00:10]} 25. b5 {[%emt 0:00:02]} cxb5 {[%emt 0:00:05]} 26. Nxb5 {[%emt 0:00:03]} Ke7 {[%emt 0:00:09]} 27. c6 {[%emt 0:00:03]} Rc8 {[%emt 0:00:20]} 28. Rxa7+ {[%emt 0:00:01]} Kf8 {[%emt 0:00:05]} 29. Rxh7 {[%emt 0:00:02]} 1-0

[Event "Austria Championship Blitz 2024"]
[Site "Innsbruck"]
[Date "2024.06.01"]
[Round "4.23"]
[White "Gerold, Alexander"]
[Black "Keferboeck, Jewgeni"]
[Result "0-1"]
[ECO "B92"]
[WhiteElo "1891"]
[BlackElo "1957"]
[Annotator "RC"]
[PlyCount "130"]
[EventDate "2024.06.01"]
[EventType "swiss"]
[EventCountry "AUT"]
[SourceTitle "playchess.com"]
[Source "ChessBase"]
[SourceQuality "1"]
[TimeControl "180+2"]

1. e4 {[%emt 0:00:02]} c5 {[%emt 0:00:00]} 2. Nf3 {[%emt 0:00:01]} d6 {[%emt 0:00:01]} 3. d4 {[%emt 0:00:01]} cxd4 {[%emt 0:00:01]} 4. Nxd4 {[%emt 0:00:00]} Nf6 {[%emt 0:00:02]} 5. Nc3 {[%emt 0:00:02]} a6 {[%emt 0:00:00]} 6. Be2 {[%emt 0:00:04]} e5 {[%emt 0:00:02]} 7. Nb3 {[%emt 0:00:07]} Be7 {[%emt 0:00:01]} 8. O-O {[%emt 0:00:02]} O-O {[%emt 0:00:02]} 9. Kh1 {[%emt 0:00:04]} b5 {[%emt 0:00:01]} 10. Bd3 {[%emt 0:00:29]} b4 {[%emt 0:00:15]} 11. Nd5 {[%emt 0:00:23]} Nxd5 {[%emt 0:00:03]} 12. exd5 {[%emt 0:00:01]} f5 {[%emt 0:00:04]} 13. Bd2 {[%emt 0:00:32]} a5 {[%emt 0:00:07]} 14. a3 {[%emt 0:00:09]} a4 {[%emt 0:00:29]} 15. axb4 {[%emt 0:00:12]} Bb7 {[%emt 0:00:02]} 16. Na5 {[%emt 0:00:24]} Bxd5 {[%emt 0:00:01]} 17. Rxa4 {[%emt 0:00:15]} Nc6 {[%emt 0:00:37]} 18. Nxc6 {[%emt 0:00:15]} Bxc6 {[%emt 0:00:01]} 19. Rxa8 {[%emt 0:00:06]} Qxa8 {[%emt 0:00:00]} 20. Bc3 {[%emt 0:00:05]} Bxg2+ {[%emt 0:00:02]} 21. Kg1 {[%emt 0:00:01]} Bf3 {[%emt 0:00:22]} 22. Be2 {[%emt 0:00:11]} Bg2 {[%emt 0:00:28]} 23. Re1 {[%emt 0:00:07]} Bh3 {[%emt 0:00:01]} 24. f3 {[%emt 0:00:01]} Qa7+ {[%emt 0:00:05]} 25. Kh1 {[%emt 0:00:05]} Qf2 {[%emt 0:00:03]} 26. Rg1 {[%emt 0:00:03]} Qh4 {[%emt 0:00:40]} 27. Qe1 {[%emt 0:00:01]} Qf4 {[%emt 0:00:11]} 28. Qg3 {[%emt 0:00:02]} g5 {[%emt 0:00:12]} 29. Qxf4 {[%emt 0:00:05]} exf4 {[%emt 0:00:03]} 30. Bd2 {[%emt 0:00:02]} g4 {[%emt 0:00:02]} 31. Bxf4 {[%emt 0:00:02]} d5 {[%emt 0:00:02]} 32. Bd2 {[%emt 0:00:04]} Rc8 {[%emt 0:00:01]} 33. Bc3 {[%emt 0:00:01]} d4 {[%emt 0:00:02]} 34. Bxd4 {[%emt 0:00:05]} Rxc2 {[%emt 0:00:01]} 35. Bf1 {[%emt 0:00:01]} Bxf1 {[%emt 0:00:02]} 36. Rxf1 {[%emt 0:00:01]} Bd6 {[%emt 0:00:02]} 37. fxg4 {[%emt 0:00:02]} Rxh2+ {[%emt 0:00:08]} 38. Kg1 fxg4 {[%emt 0:00:00]} 39. Rf2 {[%emt 0:00:04]} Rh3 {[%emt 0:00:00]} 40. Rg2 {[%emt 0:00:01]} h5 {[%emt 0:00:00]} 41. b5 {[%emt 0:00:02]} Rb3 {[%emt 0:00:00]} 42. b6 {[%emt 0:00:01]} Rb4 {[%emt 0:00:03]} 43. Rd2 {[%emt 0:00:03]} Rxd4 {[%emt 0:00:02]} 44. Rxd4 {[%emt 0:00:11]} Bc5 45. b7 {[%emt 0:00:00]} Bxd4+ {[%emt 0:00:11]} 46. Kg2 Be5 {[%emt 0:00:00]} 47. b4 {[%emt 0:00:00]} Kf7 {[%emt 0:00:00]} 48. b5 {[%emt 0:00:00]} Bb8 {[%emt 0:00:00]} 49. b6 {[%emt 0:00:00]} Kg6 {[%emt 0:00:00]} 50. Kf2 {[%emt 0:00:01]} Kg5 {[%emt 0:00:00]} 51. Kg2 {[%emt 0:00:00]} h4 {[%emt 0:00:00]} 52. Kh1 {[%emt 0:00:01]} Kf5 {[%emt 0:00:00]} 53. Kg2 {[%emt 0:00:01]} Ke6 {[%emt 0:00:00]} 54. Kf2 {[%emt 0:00:01]} Kd6 {[%emt 0:00:00]} 55. Kg2 {[%emt 0:00:00]} Kc6 {[%emt 0:00:00]} 56. Kf2 {[%emt 0:00:02]} Kxb6 {[%emt 0:00:00]} 57. Kg2 {[%emt 0:00:01]} Kxb7 {[%emt 0:00:01]} 58. Kf2 {[%emt 0:00:02]} Kc6 {[%emt 0:00:01]} 59. Kg2 {[%emt 0:00:00]} Kd5 {[%emt 0:00:00]} 60. Kf2 {[%emt 0:00:01]} Ke4 {[%emt 0:00:01]} 61. Kg2 {[%emt 0:00:00]} h3+ {[%emt 0:00:01]} 62. Kh1 {[%emt 0:00:01]} g3 {[%emt 0:00:01]} 63. Kg1 {[%emt 0:00:01]} Ba7+ {[%emt 0:00:01]} 64. Kh1 {[%emt 0:00:01]} g2+ {[%emt 0:00:01]} 65. Kh2 {[%emt 0:00:01]} g1=Q+ {[%emt 0:00:02]} 0-1

[Event "Austria Championship Blitz 2024"]
[Site "Innsbruck"]
[Date "2024.06.01"]
[Round "4.24"]
[White "Karall, Lorenz"]
[Black "Kosc, Renata"]
[Result "1-0"]
[ECO "A86"]
[WhiteElo "1869"]
[BlackElo "1983"]
[Annotator "RC"]
[PlyCount "61"]
[EventDate "2024.06.01"]
[EventType "swiss"]
[EventCountry "AUT"]
[SourceTitle "playchess.com"]
[Source "ChessBase"]
[SourceQuality "1"]
[TimeControl "180+2"]

1. d4 {[%emt 0:00:01]} f5 {[%emt 0:00:00]} 2. g3 {[%emt 0:00:01]} Nf6 {[%emt 0:00:01]} 3. Bg2 g6 4. c4 {[%emt 0:00:03]} Bg7 {[%emt 0:00:02]} 5. Nc3 {[%emt 0:00:01]} O-O {[%emt 0:00:01]} 6. Nh3 {[%emt 0:00:01]} d6 {[%emt 0:00:02]} 7. f4 {[%emt 0:00:03]} e6 {[%emt 0:00:22]} 8. O-O {[%emt 0:00:04]} Qe7 {[%emt 0:00:03]} 9. Nf2 {[%emt 0:00:08]} e5 {[%emt 0:00:06]} 10. dxe5 {[%emt 0:00:02]} dxe5 {[%emt 0:00:01]} 11. fxe5 {[%emt 0:00:06]} Qxe5 {[%emt 0:00:06]} 12. e4 {[%emt 0:00:28]} fxe4 {[%emt 0:00:20]} 13. Nfxe4 {[%emt 0:00:05]} Nc6 {[%emt 0:00:17]} 14. Bf4 {[%emt 0:00:06]} Qe7 {[%emt 0:00:09]} 15. Nxf6+ {[%emt 0:00:07]} Bxf6 {[%emt 0:00:02]} 16. Nd5 {[%emt 0:00:01]} Qc5+ {[%emt 0:00:04]} 17. Kh1 {[%emt 0:00:06]} Bd8 {[%emt 0:00:16]} 18. b3 {[%emt 0:00:20]} Bf5 {[%emt 0:01:46]} 19. Rc1 {[%emt 0:00:18]} Qa5 {[%emt 0:00:00]} 20. Qe2 {[%emt 0:00:23]} Bf6 {[%emt 0:00:00]} 21. Bxc7 {[%emt 0:00:08]} Qc5 {[%emt 0:00:00]} 22. Nxf6+ {[%emt 0:00:07]} Rxf6 {[%emt 0:00:00]} 23. Bf4 {[%emt 0:00:05]} Rff8 {[%emt 0:00:00]} 24. Bd5+ {[%emt 0:00:13]} Kg7 {[%emt 0:00:00]} 25. Qb2+ {[%emt 0:00:02]} Rf6 {[%emt 0:00:00]} 26. Bg5 {[%emt 0:00:02]} Raf8 {[%emt 0:00:00]} 27. Bxf6+ {[%emt 0:00:02]} Rxf6 {[%emt 0:00:00]} 28. g4 {[%emt 0:00:05]} Nd4 {[%emt 0:00:00]} 29. gxf5 {[%emt 0:00:07]} Nxf5 {[%emt 0:00:00]} 30. Rce1 {[%emt 0:00:12]} Ne3 {[%emt 0:00:00]} 31. Qxf6+ {[%emt 0:00:37]} 1-0

[Event "Austria Championship Blitz 2024"]
[Site "Innsbruck"]
[Date "2024.06.01"]
[Round "5.1"]
[White "Blohberger, Felix"]
[Black "Shengelia, David"]
[Result "0-1"]
[ECO "E11"]
[WhiteElo "2506"]
[BlackElo "2465"]
[Annotator "TA"]
[PlyCount "64"]
[EventDate "2024.06.01"]
[EventType "swiss"]
[EventCountry "AUT"]
[SourceTitle "playchess.com"]
[Source "ChessBase"]
[SourceQuality "1"]
[TimeControl "180+2"]

{[%evp 13,64,11,29,35,32,19,24,11,9,23,35,16,43,37,44,46,45,43,52,36,111,39,50,35,60,46,135,-194,66,61,70,69,155,148,270,248,236,188,163,212,200,84,236,194,187,162,182,150,148,98,111,-470,-459]} 1. d4 {[%emt 0:00:01]} Nf6 {[%emt 0:00:01]} 2. c4 {[%emt 0:00:01]} e6 {[%emt 0:00:02]} 3. Nf3 {[%emt 0:00:01]} Bb4+ {[%emt 0:00:02]} 4. Bd2 {[%emt 0:00:01]} Bxd2+ {[%emt 0:00:02]} 5. Qxd2 {[%emt 0:00:02]} d5 {[%emt 0:00:02]} 6. Nc3 {[%emt 0:00:05]} O-O {[%emt 0:00:08]} 7. e3 {[%emt 0:00:01]} Nc6 {[%emt 0:00:11]} 8. Rc1 {[%emt 0:00:22]} Qe7 {[%emt 0:00:09]} 9. cxd5 {[%emt 0:00:16]} exd5 {[%emt 0:00:02]} 10. Be2 {[%emt 0:00:05] White has an edge.} Bf5 $1 {[%emt 0:00:26]} 11. O-O {[%emt 0:00:20]} Rad8 {[%emt 0:00:02]} 12. Qd1 {[%emt 0:00:13]} Qb4 {[%emt 0:00:52]} 13. Na4 {[%emt 0:00:24]} Ne4 {[%emt 0:00:17] Wards off Rc5} 14. a3 {[%emt 0:00:02]} Qe7 {[%emt 0:00:18]} 15. b4 {[%emt 0:00:08]} Nb8 {[%emt 0:00:15]} 16. Nc5 {[%emt 0:00:11]} b6 {[%emt 0:00:05]} (16... c6 $14) 17. Nd3 {[%emt 0:00:18]} (17. Nxe4 $16 dxe4 18. Nd2) 17... c6 $14 {[%emt 0:00:07]} 18. Nfe5 {[%emt 0:00:06]} Rd6 {[%emt 0:00:02]} 19. Nf4 {[%emt 0:00:29]} Rh6 {[%emt 0:00:03] [#]} (19... f6 $14 20. Ned3 g5) 20. Nf3 $2 {[%emt 0:00:12][%mdl 8192]} (20. b5 $1 $16 {[%cal Rb5c6] keeps the pressure on.} c5 21. Nxd5) 20... Bg4 $2 {[%emt 0:00:05]} (20... g5 $19 21. Nd3 g4) 21. h3 {[%emt 0:00:07]} Bxf3 {[%emt 0:00:02]} 22. Bxf3 {[%emt 0:00:01]} Nd7 {[%emt 0:00:11]} (22... Nd6 $14) 23. b5 $36 {[%emt 0:00:02][%mdl 2048] Black is under strong pressure.} cxb5 {[%emt 0:00:07]} (23... c5 $16) 24. Nxd5 $18 {[%emt 0:00:01]} Qe6 {[%emt 0:00:02]} 25. Nc7 {[%emt 0:00:05]} Qg6 {[%emt 0:00:01]} 26. Bxe4 {[%emt 0:00:06]} ({Worse is} 26. Nxb5 Ng5 27. Re1 (27. Nxa7 $2 {loses.} Nxh3+ 28. Kh1 Nxf2+ 29. Kg1 Nxd1 $19) 27... Nxh3+ 28. Kf1 Nf4 $11 (28... Ng5 29. Nxa7 Qf5 30. a4 $11)) 26... Qxe4 {[%emt 0:00:01]} 27. Qf3 {[%emt 0:00:08]} ({Not} 27. Nxb5 Rg6 28. g3 (28. Nxa7 $2 Qxg2#) 28... Qf5 29. Nxa7 Qxh3 $16) (27. Qg4 $18 {is more deadly.} Nf6 28. Qxe4 Nxe4 29. Nxb5) 27... Qd3 {[%emt 0:00:01] [#]} (27... Qxf3 $16 {was necessary.} 28. gxf3 Rxh3) 28. Rfd1 {[%emt 0:00:04]} Qxa3 {[%emt 0:00:01]} 29. Nxb5 {[%emt 0:00:01]} Qa5 {[%emt 0:00:03]} 30. Qe2 {[%emt 0:00:03]} a6 {[%emt 0:00:03]} 31. Nc7 {[%emt 0:00:02]} (31. Na7 $142) 31... b5 $16 {[%emt 0:00:02]} 32. Ra1 $2 {[%emt 0:00:02][%mdl 8192]} (32. Qf3 $16) 32... Qxc7 {[%emt 0:00:01] Black used his chance.   Weighted Error Value: White=0.65/Black=0.43.  Loses game:     	White=2     	---        Missed win:     	---       	Black=1      Mistake:       	White=3     	Black=5      Inaccurate:     	---       	Black=1      OK:         	White=6     	Black=9      Best:        	---       	Black=1      Strong:       	---       	Black=1} 0-1

[Event "Austria Championship Blitz 2024"]
[Site "Innsbruck"]
[Date "2024.06.01"]
[Round "5.2"]
[White "Lerch, Johannes"]
[Black "Schwabeneder, Florian"]
[Result "0-1"]
[ECO "B06"]
[WhiteElo "2208"]
[BlackElo "2405"]
[Annotator "RC"]
[PlyCount "130"]
[EventDate "2024.06.01"]
[EventType "swiss"]
[EventCountry "AUT"]
[SourceTitle "playchess.com"]
[Source "ChessBase"]
[SourceQuality "1"]
[TimeControl "180+2"]

1. e4 {[%emt 0:00:01]} d6 {[%emt 0:00:02]} 2. Nc3 {[%emt 0:00:01]} Nf6 {[%emt 0:00:01]} 3. g3 {[%emt 0:00:00]} g6 {[%emt 0:03:05]} 4. Bg2 Bg7 {[%emt 0:00:00]} 5. d3 {[%emt 0:00:02]} O-O {[%emt 0:00:00]} 6. h3 {[%emt 0:00:01]} c5 {[%emt 0:00:00]} 7. f4 {[%emt 0:00:06]} Nc6 {[%emt 0:00:00]} 8. Nf3 {[%emt 0:00:02]} Rb8 {[%emt 0:00:00]} 9. Be3 {[%emt 0:00:04]} b5 {[%emt 0:00:00]} 10. Qd2 {[%emt 0:00:01]} b4 {[%emt 0:00:00]} 11. Nd1 {[%emt 0:00:01]} Nd7 {[%emt 0:00:00]} 12. O-O {[%emt 0:00:03]} Nd4 {[%emt 0:00:00]} 13. Nh4 {[%emt 0:00:12]} f5 {[%emt 0:00:00]} 14. exf5 {[%emt 0:00:05]} Nxf5 {[%emt 0:00:00]} 15. Nxf5 {[%emt 0:00:02]} gxf5 {[%emt 0:00:00]} 16. Kh2 {[%emt 0:00:07]} Nf6 {[%emt 0:00:00]} 17. Nf2 {[%emt 0:00:07]} Qd7 {[%emt 0:00:00]} 18. Rae1 {[%emt 0:00:15]} Bb7 {[%emt 0:00:00]} 19. Rg1 {[%emt 0:00:05]} Bxg2 {[%emt 0:00:00]} 20. Rxg2 {[%emt 0:00:01]} Nd5 {[%emt 0:00:00]} 21. Nd1 {[%emt 0:00:07]} Rbe8 {[%emt 0:00:00]} 22. Reg1 {[%emt 0:00:12]} e5 {[%emt 0:00:00]} 23. fxe5 {[%emt 0:00:08]} Bxe5 {[%emt 0:00:00]} 24. Bh6 {[%emt 0:00:02]} Rf7 {[%emt 0:00:00]} 25. Kh1 {[%emt 0:00:02]} Bd4 {[%emt 0:00:00]} 26. Rf1 {[%emt 0:00:05]} Kh8 {[%emt 0:00:00]} 27. c3 {[%emt 0:00:05]} bxc3 28. bxc3 {[%emt 0:00:01]} Be5 {[%emt 0:00:06]} 29. c4 {[%emt 0:00:12]} Nb4 {[%emt 0:00:05]} 30. Ne3 {[%emt 0:00:11]} Rg8 {[%emt 0:00:16]} 31. Bf4 {[%emt 0:00:12]} Bxf4 {[%emt 0:00:10]} 32. Rxf4 {[%emt 0:00:01]} Nc6 {[%emt 0:00:01]} 33. Qf2 {[%emt 0:00:22]} Ne5 {[%emt 0:00:06]} 34. Qd2 {[%emt 0:00:25]} Ng6 {[%emt 0:00:05]} 35. Rf1 {[%emt 0:00:23]} f4 {[%emt 0:00:02]} 36. Ng4 {[%emt 0:00:23]} fxg3 {[%emt 0:00:07]} 37. Rxf7 {[%emt 0:00:02]} Qxf7 {[%emt 0:00:01]} 38. Rxg3 {[%emt 0:00:04]} Qf1+ {[%emt 0:00:06]} 39. Kh2 {[%emt 0:00:02]} Re8 {[%emt 0:00:01]} 40. Rg2 {[%emt 0:00:02]} Qf4+ {[%emt 0:00:04]} 41. Qxf4 {[%emt 0:00:02]} Nxf4 {[%emt 0:00:01]} 42. Rb2 {[%emt 0:00:04]} Re2+ {[%emt 0:00:04]} 43. Rxe2 {[%emt 0:00:02]} Nxe2 {[%emt 0:00:05]} 44. Kg2 {[%emt 0:00:02]} Nc1 {[%emt 0:00:00]} 45. Nf2 {[%emt 0:00:01]} Nxa2 {[%emt 0:00:00]} 46. Ne4 {[%emt 0:00:01]} Nb4 {[%emt 0:00:00]} 47. Nxd6 {[%emt 0:00:01]} Nxd3 {[%emt 0:00:00]} 48. Nb7 {[%emt 0:00:03]} Kg7 {[%emt 0:00:02]} 49. Kf3 {[%emt 0:00:01]} Ne5+ {[%emt 0:00:05]} 50. Ke4 {[%emt 0:00:03]} Nxc4 {[%emt 0:00:00]} 51. Nxc5 {[%emt 0:00:01]} a5 {[%emt 0:00:04]} 52. Na4 {[%emt 0:00:01]} Kg6 {[%emt 0:00:02]} 53. Kf4 {[%emt 0:00:04]} Kh5 {[%emt 0:00:02]} 54. Kg3 {[%emt 0:00:02]} Nd6 {[%emt 0:00:01]} 55. Nb6 {[%emt 0:00:02]} Nf5+ {[%emt 0:00:01]} 56. Kg2 {[%emt 0:00:01]} Kh4 {[%emt 0:00:01]} 57. Na4 {[%emt 0:00:03]} Nd6 {[%emt 0:00:02]} 58. Nb6 {[%emt 0:00:03]} Ne4 {[%emt 0:00:02]} 59. Na4 {[%emt 0:00:03]} Ng5 {[%emt 0:00:01]} 60. Kf2 {[%emt 0:00:02]} Kxh3 {[%emt 0:00:02]} 61. Ke3 {[%emt 0:00:00]} Kg3 {[%emt 0:00:02]} 62. Nc3 {[%emt 0:00:03]} h5 {[%emt 0:00:02]} 63. Ne2+ {[%emt 0:00:00]} Kg4 {[%emt 0:00:02]} 64. Ng1 {[%emt 0:00:05]} h4 {[%emt 0:00:03]} 65. Kd4 {[%emt 0:00:01]} Nf3+ {[%emt 0:00:01]} 0-1

[Event "Austria Championship Blitz 2024"]
[Site "Innsbruck"]
[Date "2024.06.01"]
[Round "5.3"]
[White "Hengl, Philip"]
[Black "Platzgummer, Fabian"]
[Result "0-1"]
[ECO "B23"]
[WhiteElo "2173"]
[BlackElo "2311"]
[Annotator "RC"]
[PlyCount "111"]
[EventDate "2024.06.01"]
[EventType "swiss"]
[EventCountry "AUT"]
[SourceTitle "playchess.com"]
[Source "ChessBase"]
[SourceQuality "1"]
[TimeControl "180+2"]

1. e4 {[%emt 0:00:01]} c5 {[%emt 0:00:01]} 2. Nc3 {[%emt 0:00:03]} b6 {[%emt 0:00:22]} 3. g3 {[%emt 0:00:11]} Bb7 {[%emt 0:00:01]} 4. Bg2 {[%emt 0:00:01]} g6 {[%emt 0:00:01]} 5. d3 {[%emt 0:00:01]} Bg7 {[%emt 0:00:01]} 6. Be3 {[%emt 0:00:05]} Nc6 {[%emt 0:00:01]} 7. Qd2 {[%emt 0:00:02]} e5 {[%emt 0:00:08]} 8. f4 {[%emt 0:00:11]} d6 {[%emt 0:00:02]} 9. Nf3 {[%emt 0:00:02]} Nge7 {[%emt 0:00:01]} 10. O-O {[%emt 0:00:04]} O-O {[%emt 0:00:02]} 11. Rae1 {[%emt 0:00:04]} Nd4 {[%emt 0:00:02]} 12. Nd1 {[%emt 0:00:11]} Nxf3+ {[%emt 0:00:19]} 13. Bxf3 {[%emt 0:00:01]} Re8 {[%emt 0:00:12]} 14. c4 {[%emt 0:00:15]} exf4 {[%emt 0:00:07]} 15. Bxf4 {[%emt 0:00:04]} Nc6 {[%emt 0:00:04]} 16. Nc3 {[%emt 0:00:04]} Be5 {[%emt 0:00:24]} 17. Bg2 {[%emt 0:00:13]} Nd4 {[%emt 0:00:07]} 18. Ne2 {[%emt 0:00:12]} Ne6 {[%emt 0:00:16]} 19. Be3 {[%emt 0:00:14]} Rc8 {[%emt 0:00:02]} 20. Kh1 {[%emt 0:00:03]} a6 {[%emt 0:00:02]} 21. Nc3 {[%emt 0:00:06]} Bd4 {[%emt 0:00:15]} 22. Ne2 {[%emt 0:00:14]} Bxe3 {[%emt 0:00:16]} 23. Qxe3 {[%emt 0:00:01]} Qg5 {[%emt 0:00:02]} 24. Nf4 {[%emt 0:00:18]} Nd4 {[%emt 0:00:08]} 25. h4 {[%emt 0:00:01]} Qe5 {[%emt 0:00:02]} 26. Qf2 {[%emt 0:00:09]} Qe7 {[%emt 0:00:10]} 27. Kh2 {[%emt 0:00:19]} Rc7 {[%emt 0:00:02]} 28. Nh3 {[%emt 0:00:06]} Nc6 {[%emt 0:00:05]} 29. Ng5 {[%emt 0:00:06]} Ne5 {[%emt 0:00:02]} 30. Qe2 {[%emt 0:00:07]} Bc8 {[%emt 0:00:01]} 31. Bh3 {[%emt 0:00:08]} Bb7 {[%emt 0:00:16]} 32. Bg2 {[%emt 0:00:24]} Kg7 {[%emt 0:00:06]} 33. Qd2 {[%emt 0:00:03]} h6 {[%emt 0:00:06]} 34. Nh3 {[%emt 0:00:02]} Nc6 {[%emt 0:00:11]} 35. Nf4 {[%emt 0:00:02]} Nd4 {[%emt 0:00:01]} 36. Ne2 {[%emt 0:00:01]} Qe5 {[%emt 0:00:03]} 37. Nxd4 {[%emt 0:00:02]} cxd4 {[%emt 0:00:02]} 38. Qf4 {[%emt 0:00:02]} f6 {[%emt 0:00:02]} 39. b4 {[%emt 0:00:03]} g5 {[%emt 0:00:02]} 40. Qxe5 {[%emt 0:00:01]} dxe5 {[%emt 0:00:01]} 41. Rc1 {[%emt 0:00:03]} Bc8 {[%emt 0:00:02]} 42. Bh3 {[%emt 0:00:01]} g4 {[%emt 0:00:00]} 43. Bg2 {[%emt 0:00:07]} Be6 44. Rf2 {[%emt 0:00:00]} Rec8 {[%emt 0:00:03]} 45. Rb2 {[%emt 0:00:00]} h5 {[%emt 0:00:04]} 46. Bf1 {[%emt 0:00:01]} Kf7 {[%emt 0:00:00]} 47. Be2 {[%emt 0:00:00]} Ke7 {[%emt 0:00:01]} 48. Bd1 {[%emt 0:00:01]} Kd6 {[%emt 0:00:01]} 49. Bb3 {[%emt 0:00:03]} f5 {[%emt 0:00:06]} 50. exf5 {[%emt 0:00:04]} Bxf5 {[%emt 0:00:01]} 51. Rd2 {[%emt 0:00:04]} Rf8 {[%emt 0:00:06]} 52. Rf1 {[%emt 0:00:02]} Rcf7 {[%emt 0:00:10]} 53. c5+ {[%emt 0:00:00]} bxc5 {[%emt 0:00:01]} 54. bxc5+ {[%emt 0:00:01]} Kxc5 {[%emt 0:00:00]} 55. Bxf7 {[%emt 0:00:03]} Rxf7 {[%emt 0:00:09]} 56. Rdf2 {[%emt 0:00:03]} 0-1